bitfinex-derivatives/quotes_BTCF0:USTF0_20250905
["timestamp","ask_amount","ask_price","bid_price","bid_amount"]
[1757067240118,0.28748682,112350.0,112340.0,1.18436]
[1757067241025,0.29048682,112350.0,112340.0,1.18436]
[1757067243224,0.29048682,112350.0,112340.0,0.3608]
[1757067243625,0.31447682,112350.0,112340.0,1.18416]
[1757067244428,0.31447682,112350.0,112340.0,1.44846]
[1757067247034,0.29048682,112350.0,112340.0,1.44846]
[1757067250142,0.33734776,112350.0,112340.0,1.4483]
[1757067253034,0.33734776,112350.0,112340.0,1.44822]
[1757067253842,0.33734776,112350.0,112340.0,1.44818]
[1757067254042,0.33734776,112350.0,112340.0,0.6251]
[1757067254237,0.31447682,112350.0,112340.0,1.44818]
[1757067258148,0.29048682,112350.0,112340.0,1.44818]
[1757067258948,0.29048682,112350.0,112340.0,1.70910435]
[1757067259145,0.29048682,112350.0,112340.0,1.44818]
[1757067260940,0.31428682,112350.0,112340.0,0.6251]
[1757067261247,0.31428682,112350.0,112340.0,1.44802]
[1757067264251,0.31428682,112350.0,112340.0,1.4479]
[1757067264442,0.82521117,112350.0,112340.0,0.6251]
[1757067264647,0.82521117,112350.0,112340.0,1.44786]
[1757067268150,0.82521117,112350.0,112340.0,1.18356]
[1757067269051,0.82525117,112350.0,112340.0,1.18356]
[1757067271955,0.82525117,112350.0,112340.0,0.3608]
[1757067272250,0.82525117,112350.0,112340.0,1.18336]
[1757067272749,0.82525117,112350.0,112340.0,0.3608]
[1757067272956,0.82525117,112350.0,112340.0,1.18336]
[1757067279260,0.57525117,112350.0,112340.0,1.18336]
[1757067279863,0.82525117,112350.0,112330.0,0.64305946]
[1757067280061,0.29882435,112340.0,112330.0,0.37875946]
[1757067280263,0.29882435,112340.0,112330.0,1.20111946]
[1757067280653,0.29882435,112340.0,112330.0,1.18316]
[1757067280960,0.5597487,112340.0,112330.0,0.82232]
[1757067281350,0.5617487,112340.0,112330.0,0.82232]
[1757067281550,0.0141,112330.0,112320.0,2.34586]
[1757067281751,0.5359487,112330.0,112320.0,3.16818]
[1757067282149,0.5359487,112330.0,112320.0,2.34586]
[1757067282350,0.5359487,112330.0,112320.0,3.16814]
[1757067282758,0.5359487,112330.0,112320.0,2.34586]
[1757067283064,0.5369487,112330.0,112320.0,2.90384]
[1757067283665,0.5369487,112330.0,112320.0,1.18308]
[1757067283857,0.5607487,112330.0,112320.0,1.18308]
[1757067284057,0.5617487,112330.0,112320.0,1.18308]
[1757067284257,0.5617487,112330.0,112320.0,1.18304]
[1757067284459,0.9225487,112330.0,112320.0,0.82224]
[1757067284659,0.0379,112320.0,112310.0,0.47249953]
[1757067284859,0.5597487,112320.0,112310.0,1.29477953]
[1757067285160,0.5597487,112320.0,112310.0,0.93397953]
[1757067285863,0.5597487,112320.0,112310.0,1.29477953]
[1757067286062,0.5597487,112320.0,112310.0,1.29577953]
[1757067286658,0.5597487,112320.0,112310.0,0.47349953]
[1757067286860,0.5597487,112320.0,112310.0,1.29573953]
[1757067287369,0.5597487,112320.0,112310.0,0.11269953]
[1757067287568,0.5597487,112320.0,112310.0,1.29573953]
[1757067287861,0.0141,112320.0,112310.0,1.29573953]
[1757067288053,0.27502435,112320.0,112310.0,1.29573953]
[1757067288261,0.29788177,112320.0,112310.0,1.18404]
[1757067288562,0.55880612,112320.0,112310.0,1.18404]
[1757067290867,0.58109612,112320.0,112310.0,0.001]
[1757067291060,0.58109612,112320.0,112310.0,0.8232]
[1757067291661,0.58109612,112320.0,112310.0,1.184]
[1757067293463,0.29126835,112320.0,112310.0,1.184]
[1757067293662,0.50043186,112320.0,112310.0,1.184]
[1757067294365,0.75043186,112320.0,112310.0,0.3618]
[1757067294570,0.75043186,112320.0,112310.0,1.20167254]
[1757067294766,0.75043186,112320.0,112310.0,0.37955254]
[1757067294971,0.75043186,112320.0,112310.0,0.82312]
[1757067297071,0.75043186,112320.0,112310.0,0.001]
[1757067300373,1.11123186,112320.0,112310.0,0.001]
[1757067301572,1.11123186,112320.0,112290.0,0.361]
[1757067301873,0.26745093,112300.0,112290.0,0.0001]
[1757067302976,0.26745093,112300.0,112290.0,0.0011]
[1757067303669,0.29024399,112300.0,112290.0,0.0041]
[1757067304172,0.29024399,112300.0,112290.0,0.0011]
[1757067304669,0.29024399,112300.0,112290.0,0.0001]
[1757067304969,0.29024399,112300.0,112290.0,0.0041]
[1757067308877,0.36036342,112300.0,112290.0,0.0041]
[1757067309676,0.36036342,112300.0,112290.0,0.6149]
[1757067311481,0.36036342,112300.0,112290.0,1.43674]
[1757067312078,0.33757036,112300.0,112290.0,0.6149]
[1757067312276,0.33757036,112300.0,112290.0,1.43674]
[1757067312880,0.33757036,112300.0,112290.0,1.4367]
[1757067313185,0.33757036,112300.0,112290.0,0.3649]
[1757067313385,0.33757036,112300.0,112290.0,1.1867]
[1757067313775,0.33757036,112300.0,112290.0,0.3649]
[1757067314181,0.33757036,112300.0,112290.0,0.0041]
[1757067322899,0.36040682,112300.0,112290.0,0.0041]
[1757067324393,0.12838589,112300.0,112290.0,0.0041]
[1757067324589,0.36040682,112300.0,112290.0,0.0041]
[1757067330902,0.12838589,112300.0,112290.0,0.0041]
[1757067331101,0.36040682,112300.0,112290.0,0.0041]
[1757067338102,0.59242775,112300.0,112280.0,0.3608]
[1757067338306,0.0349,112280.0,112270.0,1.18224]
[1757067338506,0.26692093,112280.0,112270.0,1.18224]
[1757067338707,0.26692093,112280.0,112270.0,0.3608]
[1757067339004,0.26692093,112280.0,112270.0,1.18224]
[1757067339200,0.26692093,112280.0,112270.0,0.3608]
[1757067339404,0.26692093,112280.0,112270.0,0.3648]
[1757067339600,0.27601439,112280.0,112270.0,1.1862]
[1757067339910,0.27601439,112280.0,112270.0,0.3648]
[1757067340111,0.50803532,112280.0,112270.0,1.1862]
[1757067340310,0.50803532,112280.0,112270.0,0.3648]
[1757067340702,0.50803532,112280.0,112270.0,1.1862]
[1757067341110,0.27601439,112280.0,112270.0,1.1842]
[1757067343716,0.27601439,112280.0,112270.0,0.3628]
[1757067344013,0.27601439,112280.0,112270.0,1.1842]
[1757067345418,0.04399346,112280.0,112270.0,1.1842]
[1757067345616,0.27601439,112280.0,112270.0,1.1842]
[1757067350718,0.04399346,112280.0,112270.0,1.1842]
[1757067351021,0.27601439,112280.0,112270.0,1.1842]
[1757067355518,0.30518763,112280.0,112270.0,1.1842]
[1757067355919,0.04399346,112280.0,112270.0,1.1842]
[1757067356120,0.30518763,112280.0,112270.0,1.1842]
[1757067358421,0.04399346,112280.0,112270.0,1.1842]
[1757067358720,0.28357763,112280.0,112270.0,1.4343]
[1757067359815,0.30621763,112280.0,112270.0,1.43426]
[1757067360115,0.30621763,112280.0,112270.0,1.69856]
[1757067360822,0.30621763,112280.0,112270.0,0.8772]
[1757067361020,0.04502346,112280.0,112270.0,1.69856]
[1757067361321,0.00909346,112280.0,112270.0,1.95975417]
[1757067361517,0.26119417,112280.0,112270.0,1.69856]
[1757067362722,0.27007236,112280.0,112270.0,1.69856]
[1757067362917,0.00887819,112280.0,112270.0,1.69856]
[1757067363137,0.26119417,112280.0,112270.0,1.69856]
[1757067363421,0.26119417,112280.0,112270.0,1.95975417]
[1757067363623,0.26119417,112280.0,112270.0,1.69852]
[1757067363824,0.26119417,112280.0,112270.0,0.8772]
[1757067364016,0.29766417,112280.0,112270.0,1.69852]
[1757067365126,0.29766417,112280.0,112270.0,0.8772]
[1757067365627,0.3065177,112280.0,112270.0,1.69848]
[1757067366327,0.2838777,112280.0,112270.0,1.69848]
[1757067372531,0.2838777,112280.0,112270.0,0.8772]
[1757067372732,0.2838777,112280.0,112270.0,1.6984]
[1757067374428,0.02268353,112280.0,112270.0,1.6984]
[1757067374631,0.2838777,112280.0,112270.0,1.6984]
[1757067375932,0.02268353,112280.0,112270.0,1.6984]
[1757067376124,0.2700477,112280.0,112270.0,1.6984]
[1757067376631,0.2700477,112280.0,112270.0,1.7184]
[1757067378028,0.00885353,112280.0,112270.0,1.7184]
[1757067378333,0.27006719,112290.0,112270.0,2.37705311]
[1757067378536,0.27006719,112290.0,112280.0,0.62199417]
[1757067378725,0.26996719,112290.0,112280.0,0.62209417]
[1757067379631,0.26119417,112290.0,112280.0,0.62209417]
[1757067379834,0.26119417,112290.0,112280.0,0.94209417]
[1757067380128,0.3315136,112300.0,112280.0,0.64309417]
[1757067380335,0.26119417,112290.0,112280.0,0.64309417]
[1757067380527,0.26119417,112290.0,112280.0,1.82501417]
[1757067381436,0.07031943,112300.0,112280.0,1.82501417]
[1757067381629,0.07031943,112300.0,112290.0,0.3608]
[1757067381934,0.26119417,112300.0,112290.0,0.64047617]
[1757067382335,0.2704962,112310.0,112290.0,0.91047617]
[1757067382535,0.00930203,112310.0,112300.0,1.18188]
[1757067382732,0.2702962,112310.0,112300.0,1.18188]
[1757067382933,0.2831462,112310.0,112300.0,0.3608]
[1757067383133,0.3061162,112310.0,112300.0,1.18188]
[1757067383633,0.3071162,112310.0,112300.0,1.18188]
[1757067384438,0.3071162,112310.0,112300.0,1.18184]
[1757067385242,0.3081162,112310.0,112300.0,1.18184]
[1757067385444,0.3091162,112310.0,112300.0,1.18184]
[1757067386937,0.2861462,112310.0,112300.0,1.18184]
[1757067387848,0.2861462,112310.0,112300.0,0.3608]
[1757067388153,0.2861462,112310.0,112300.0,1.1818]
[1757067388749,0.5591162,112310.0,112300.0,0.3608]
[1757067388945,0.5591162,112310.0,112300.0,1.18176]
[1757067389450,0.5591162,112310.0,112300.0,0.3608]
[1757067389644,0.5591162,112310.0,112300.0,1.18172]
[1757067393052,0.5591162,112310.0,112300.0,0.3608]
[1757067393353,0.5591162,112310.0,112300.0,1.18164]
[1757067395252,0.3091162,112310.0,112300.0,1.18164]
[1757067395753,0.3091162,112310.0,112300.0,1.1816]
[1757067396152,0.5591162,112310.0,112300.0,1.1816]
[1757067398650,0.5591162,112310.0,112300.0,1.2258]
[1757067399358,0.3091162,112310.0,112300.0,1.2258]
[1757067401361,0.3091162,112310.0,112300.0,0.405]
[1757067401660,0.3091162,112310.0,112300.0,1.22572]
[1757067404258,0.3091162,112310.0,112300.0,0.405]
[1757067404555,0.3091162,112310.0,112300.0,1.22564]
[1757067404861,0.3091162,112310.0,112300.0,0.405]
[1757067405160,0.3091162,112310.0,112300.0,1.22564]
[1757067406063,0.3091162,112310.0,112300.0,0.405]
[1757067406262,0.3091162,112310.0,112300.0,1.2256]
[1757067409168,0.04792203,112310.0,112300.0,1.2256]
[1757067409361,0.2732962,112310.0,112300.0,1.4756]
[1757067410668,0.2732962,112310.0,112300.0,1.7399]
[1757067412069,0.2722962,112310.0,112300.0,1.7399]
[1757067412365,0.2712962,112310.0,112300.0,1.7399]
[1757067415471,0.01010203,112310.0,112300.0,1.7399]
[1757067420270,0.01010203,112310.0,112300.0,1.7599]
[1757067420868,0.01010203,112310.0,112300.0,1.7399]
[1757067421168,0.001,112310.0,112300.0,2.08092266]
[1757067421571,0.001,112310.0,112300.0,2.38092266]
[1757067421770,0.001,112310.0,112300.0,2.11662266]
[1757067422077,0.001,112310.0,112300.0,1.81662266]
[1757067422774,0.001,112310.0,112300.0,1.81762266]
[1757067423373,0.001,112310.0,112300.0,1.20798246]
[1757067423571,0.001,112310.0,112300.0,1.79624]
[1757067424071,0.00902093,112320.0,112300.0,1.79624]
[1757067424265,0.00902093,112320.0,112310.0,0.3608]
[1757067424466,0.00882093,112320.0,112310.0,0.3808]
[1757067424775,0.26807246,112330.0,112310.0,0.3808]
[1757067424973,0.26807246,112330.0,112320.0,1.181]
[1757067425174,0.26787246,112330.0,112320.0,1.181]
[1757067425672,0.25366952,112330.0,112320.0,1.181]
[1757067426175,0.25566952,112330.0,112320.0,1.181]
[1757067426662,0.27855777,112330.0,112320.0,1.181]
[1757067427763,0.27955777,112330.0,112320.0,1.181]
[1757067427963,0.27955777,112330.0,112320.0,1.22519]
[1757067428159,0.27955777,112330.0,112320.0,1.22507]
[1757067428564,0.30259777,112330.0,112320.0,0.40499]
[1757067428767,0.30259777,112330.0,112320.0,1.22507]
[1757067429077,0.27955777,112330.0,112320.0,1.22507]
[1757067429876,0.25666952,112330.0,112320.0,1.22507]
[1757067430077,0.27970952,112330.0,112320.0,1.22503]
[1757067430478,0.04772706,112330.0,112320.0,1.22503]
[1757067430677,0.27970952,112330.0,112320.0,1.22503]
[1757067436486,0.27970952,112330.0,112320.0,0.40499]
[1757067436883,0.27970952,112330.0,112320.0,1.22483]
[1757067437080,0.27970952,112330.0,112320.0,0.40499]
[1757067437275,0.27970952,112330.0,112320.0,1.22483]
[1757067437482,0.27970952,112330.0,112320.0,1.48913]
[1757067439187,0.27670952,112330.0,112320.0,1.49013]
[1757067443587,0.27670952,112330.0,112320.0,0.67029]
[1757067443793,0.27670952,112330.0,112320.0,1.48993]
[1757067444687,0.27670952,112330.0,112320.0,0.67029]
[1757067445173,0.27670952,112330.0,112320.0,1.48989]
[1757067447390,0.00883706,112330.0,112320.0,1.48989]
[1757067447596,0.0002,112340.0,112320.0,1.97187246]
[1757067447804,0.0002,112340.0,112330.0,0.3608]
[1757067448088,0.26678246,112350.0,112330.0,0.3608]
[1757067448288,0.26678246,112350.0,112340.0,1.18032]
[1757067448503,0.26658246,112350.0,112340.0,1.18032]
[1757067449898,0.26758246,112350.0,112340.0,1.18028]
[1757067450391,0.26958246,112350.0,112340.0,1.18028]
[1757067451288,0.26958246,112350.0,112340.0,1.21833268]
[1757067452000,0.00304,112350.0,112340.0,1.21833268]
[1757067452292,0.01182738,112350.0,112340.0,1.48263268]
[1757067452491,0.00304,112350.0,112340.0,1.48263268]
[1757067452693,0.0381778,112350.0,112340.0,1.48263268]
[1757067453392,0.27016026,112350.0,112340.0,1.21833268]
[1757067453596,0.27912756,112350.0,112340.0,1.21833268]
[1757067453791,0.27812756,112350.0,112340.0,1.21833268]
[1757067454694,0.0312551,112350.0,112340.0,1.46817268]
[1757067455596,0.29817756,112350.0,112340.0,0.39885268]
[1757067455796,0.29817756,112350.0,112340.0,1.21813268]
[1757067456295,0.29817756,112350.0,112340.0,0.39885268]
[1757067456592,0.29817756,112350.0,112340.0,1.21809268]
[1757067456799,0.27692976,112350.0,112340.0,1.21809268]
[1757067458902,0.27692976,112350.0,112340.0,0.39885268]
[1757067459199,0.27692976,112350.0,112340.0,1.21801268]
[1757067460595,0.27692976,112350.0,112340.0,0.39885268]
[1757067460800,0.27692976,112350.0,112340.0,1.19961]
[1757067462703,0.52692976,112350.0,112340.0,1.19961]
[1757067464199,0.27692976,112350.0,112340.0,1.19961]
[1757067465306,0.27692976,112350.0,112340.0,1.2241]
[1757067467808,0.29819216,112350.0,112340.0,1.2241]
[1757067468411,0.29819216,112350.0,112340.0,0.40498]
[1757067468609,0.54819216,112350.0,112340.0,0.40498]
[1757067468805,0.54819216,112350.0,112340.0,0.86306]
[1757067469301,0.90899216,112350.0,112340.0,0.04418]
[1757067469611,0.0343,112330.0,112320.0,0.42485905]
[1757067469910,0.26628246,112330.0,112320.0,1.24359905]
[1757067470505,0.26628246,112330.0,112320.0,0.42475905]
[1757067470700,0.26628246,112330.0,112320.0,1.24359905]
[1757067470905,0.26628246,112330.0,112320.0,1.24459905]
[1757067471615,0.28754486,112330.0,112320.0,1.18064]
[1757067471910,0.28754486,112330.0,112320.0,0.3648]
[1757067472117,0.76952732,112330.0,112320.0,0.004]
[1757067472612,0.76952732,112330.0,112320.0,0.001]
[1757067472999,1.13032732,112330.0,112320.0,0.001]
[1757067473203,1.13232732,112330.0,112310.0,1.32344634]
[1757067473405,0.49826492,112320.0,112310.0,0.50464634]
[1757067473704,0.49826492,112320.0,112310.0,1.32344634]
[1757067474118,0.85906492,112320.0,112310.0,0.96264634]
[1757067474413,0.85906492,112320.0,112310.0,0.14384634]
[1757067474913,0.86106492,112320.0,112310.0,0.14384634]
[1757067476214,0.86206492,112320.0,112310.0,0.14384634]
[1757067477313,0.01283,112310.0,112300.0,1.17964]
[1757067477514,0.27391865,112310.0,112300.0,1.17964]
[1757067478418,0.27491865,112310.0,112300.0,1.17964]
[1757067479519,0.29638865,112310.0,112300.0,0.3608]
[1757067479718,0.29638865,112310.0,112300.0,1.17956]
[1757067482118,0.01283,112300.0,112290.0,0.45916929]
[1757067482420,0.5564773,112300.0,112290.0,1.27788929]
[1757067483316,0.5564773,112300.0,112290.0,1.27888929]
[1757067485425,0.5564773,112300.0,112290.0,0.46016929]
[1757067485628,0.5564773,112300.0,112290.0,1.27884929]
[1757067486923,0.5564773,112300.0,112290.0,1.26046729]
[1757067488719,0.5564773,112300.0,112290.0,0.44178729]
[1757067489020,0.5564773,112300.0,112290.0,1.26042729]
[1757067490727,0.62944595,112300.0,112290.0,1.26042729]
[1757067492726,0.62944595,112300.0,112290.0,0.44178729]
[1757067492927,0.62944595,112300.0,112290.0,1.26034729]
[1757067497019,0.62944595,112300.0,112290.0,0.08098729]
[1757067497322,0.62944595,112300.0,112290.0,0.89946729]
[1757067497926,0.62944595,112300.0,112290.0,0.09907606]
[1757067498127,0.62944595,112300.0,112290.0,0.91751606]
[1757067498334,0.87944595,112300.0,112290.0,0.08098729]
[1757067500937,0.87944595,112300.0,112290.0,0.0011]
[1757067511947,1.69764595,112300.0,112290.0,0.0011]
[1757067513543,1.71905153,112300.0,112290.0,0.0011]
[1757067514252,1.71897153,112300.0,112290.0,0.0011]
[1757067516362,0.90085153,112300.0,112290.0,0.0011]
[1757067516651,0.38976288,112300.0,112290.0,0.6119]
[1757067519049,0.38976288,112300.0,112290.0,1.4299]
[1757067519254,0.38976288,112300.0,112290.0,1.1799]
[1757067523455,0.65085153,112300.0,112290.0,0.3619]
[1757067523662,0.65085153,112300.0,112290.0,1.17982]
[1757067531470,0.65085153,112300.0,112290.0,0.3619]
[1757067531765,0.65085153,112300.0,112290.0,1.17958]
[1757067531968,0.65085153,112300.0,112290.0,0.3619]
[1757067532266,0.65085153,112300.0,112290.0,1.1795]
[1757067534465,0.65085153,112300.0,112290.0,0.3619]
[1757067534668,0.03644,112270.0,112260.0,0.07988729]
[1757067534862,0.65832865,112270.0,112260.0,0.07988729]
[1757067535065,0.65832865,112270.0,112260.0,0.89740729]
[1757067535264,0.65832865,112270.0,112260.0,0.07988729]
[1757067535463,0.65832865,112270.0,112260.0,0.89740729]
[1757067536160,0.62188865,112270.0,112260.0,0.32988729]
[1757067536366,0.62188865,112270.0,112260.0,1.14736729]
[1757067536668,0.62188865,112270.0,112260.0,0.32988729]
[1757067536868,0.62188865,112270.0,112260.0,1.15036729]
[1757067537070,0.3608,112270.0,112260.0,1.15236729]
[1757067537255,0.26108865,112270.0,112260.0,1.73345594]
[1757067537461,0.26108865,112270.0,112260.0,1.41345594]
[1757067537662,0.26108865,112270.0,112260.0,1.73345594]
[1757067538360,0.26108865,112270.0,112260.0,0.65488729]
[1757067538656,0.26108865,112270.0,112260.0,1.47236729]
[1757067539668,0.38319258,112280.0,112260.0,1.47236729]
[1757067539669,0.61532856,112280.0,112260.0,1.47236729]
[1757067539870,0.61532856,112280.0,112260.0,1.22236729]
[1757067540069,0.61532856,112280.0,112260.0,0.90236729]
[1757067540270,0.61532856,112280.0,112260.0,1.22236729]
[1757067540970,0.25452856,112280.0,112260.0,1.58016729]
[1757067541172,0.25452856,112280.0,112260.0,1.58316729]
[1757067542071,0.25452856,112280.0,112260.0,1.26316729]
[1757067542569,0.25452856,112280.0,112260.0,1.58316729]
[1757067543971,0.25452856,112280.0,112260.0,0.44568729]
[1757067543972,0.26857598,112270.0,112260.0,0.44568729]
[1757067544177,0.26857598,112270.0,112260.0,0.90220729]
[1757067544178,0.99017598,112270.0,112260.0,0.90220729]
[1757067546273,0.99017598,112270.0,112260.0,0.90020729]
[1757067546477,0.99017598,112270.0,112260.0,0.89920729]
[1757067546773,0.99017598,112270.0,112260.0,0.90220729]
[1757067547872,0.01316,112270.0,112260.0,0.90220729]
[1757067548070,0.23213598,112270.0,112260.0,0.90220729]
[1757067548269,0.23213598,112270.0,112260.0,0.08488729]
[1757067548673,0.23213598,112270.0,112260.0,0.90216729]
[1757067549782,0.23213598,112270.0,112260.0,0.82228]
[1757067551779,0.26857598,112270.0,112260.0,0.82228]
[1757067553079,0.26857598,112270.0,112260.0,1.08658]
[1757067553280,0.24529598,112270.0,112260.0,1.08668]
[1757067554178,0.24529598,112270.0,112260.0,1.08368]
[1757067554378,0.24529598,112270.0,112260.0,1.08568]
[1757067554580,0.24529598,112270.0,112260.0,1.08368]
[1757067554879,0.24529598,112270.0,112260.0,1.08468]
[1757067557982,0.23213598,112270.0,112260.0,1.08468]
[1757067558184,0.61542856,112280.0,112260.0,1.08468]
[1757067558683,0.61542856,112280.0,112260.0,1.40468]
[1757067559084,0.61542856,112280.0,112260.0,1.08468]
[1757067559486,0.61542856,112280.0,112260.0,1.08268]
[1757067559679,0.61542856,112280.0,112260.0,1.08468]
[1757067559985,0.61542856,112280.0,112260.0,1.40468]
[1757067560685,0.38329258,112280.0,112260.0,1.40468]
[1757067560979,0.61542856,112280.0,112260.0,1.40468]
[1757067562087,0.38329258,112280.0,112260.0,1.08468]
[1757067562284,0.61542856,112280.0,112260.0,1.10275719]
[1757067562477,0.61542856,112280.0,112260.0,1.41275719]
[1757067562677,0.61542856,112280.0,112260.0,1.10275719]
[1757067562984,0.61542856,112280.0,112260.0,1.42275719]
[1757067563785,0.61542856,112280.0,112260.0,1.10275719]
[1757067563987,0.61542856,112280.0,112260.0,1.42275719]
[1757067566391,0.63867856,112280.0,112260.0,0.60547719]
[1757067566689,0.63867856,112280.0,112270.0,0.81688]
[1757067566891,0.63847856,112280.0,112270.0,0.81698]
[1757067569593,0.63847856,112280.0,112270.0,0.81798]
[1757067569994,0.27767856,112280.0,112270.0,0.81798]
[1757067570296,0.63847856,112280.0,112270.0,0.81798]
[1757067570897,0.63847856,112280.0,112270.0,1.08228]
[1757067579302,0.40634258,112280.0,112270.0,1.08228]
[1757067579500,0.63847856,112280.0,112270.0,1.08228]
[1757067584208,0.40634258,112280.0,112270.0,1.08228]
[1757067584406,0.37416,112290.0,112270.0,1.33228]
[1757067584605,0.60629598,112290.0,112270.0,1.08228]
[1757067585306,0.60629598,112290.0,112270.0,1.40228]
[1757067586210,0.60629598,112290.0,112270.0,1.40128]
[1757067586408,0.60629598,112290.0,112270.0,1.40228]
[1757067586814,0.37416,112290.0,112270.0,1.40228]
[1757067587110,0.60629598,112290.0,112270.0,1.76308]
[1757067588214,0.61505829,112290.0,112270.0,1.76308]
[1757067588512,0.61505829,112290.0,112270.0,1.44308]
[1757067588710,0.63762829,112290.0,112270.0,0.2654]
[1757067588915,0.23213598,112280.0,112270.0,0.2654]
[1757067589115,0.23213598,112280.0,112270.0,1.08168]
[1757067589609,0.23213598,112280.0,112270.0,0.2654]
[1757067589816,0.23213598,112280.0,112270.0,1.08168]
[1757067590314,0.24553598,112280.0,112270.0,1.08068]
[1757067590516,0.24553598,112280.0,112270.0,0.2654]
[1757067590716,0.24553598,112280.0,112270.0,1.08164]
[1757067591416,0.24553598,112280.0,112270.0,0.2654]
[1757067591617,0.26810598,112280.0,112270.0,0.2654]
[1757067591819,0.26810598,112280.0,112270.0,1.0816]
[1757067592012,0.62890598,112280.0,112270.0,1.0816]
[1757067592412,0.39677,112280.0,112270.0,1.0816]
[1757067592613,0.62890598,112280.0,112270.0,0.2654]
[1757067592818,0.62890598,112280.0,112270.0,1.0816]
[1757067593521,0.62890598,112280.0,112270.0,1.08156]
[1757067594021,0.62890598,112280.0,112270.0,1.08056]
[1757067594321,0.62990598,112280.0,112270.0,1.08056]
[1757067595522,0.39777,112280.0,112270.0,1.08056]
[1757067595723,0.62990598,112280.0,112270.0,1.08056]
[1757067599424,0.65894941,112280.0,112270.0,1.08056]
[1757067601026,0.26217941,112280.0,112270.0,1.91173941]
[1757067601926,0.26217941,112280.0,112270.0,1.59173941]
[1757067602126,0.26217941,112280.0,112270.0,1.33056]
[1757067602529,0.26217941,112280.0,112270.0,1.65056]
[1757067603126,0.001,112280.0,112270.0,1.65056]
[1757067603326,0.26217941,112280.0,112270.0,1.65056]
[1757067603626,0.26217941,112280.0,112270.0,1.91173941]
[1757067604026,0.26217941,112280.0,112270.0,1.59173941]
[1757067604225,0.65894941,112280.0,112270.0,1.0804]
[1757067604826,0.65894941,112280.0,112270.0,1.0814]
[1757067605132,0.65794941,112280.0,112270.0,1.0814]
[1757067605524,0.39677,112280.0,112270.0,1.0814]
[1757067605730,0.65794941,112280.0,112270.0,1.0814]
[1757067607433,0.65794941,112280.0,112270.0,1.08136]
[1757067610939,0.65794941,112280.0,112270.0,0.2654]
[1757067611129,0.65794941,112280.0,112270.0,1.08128]
[1757067612339,0.65794941,112280.0,112270.0,0.81698]
[1757067613636,0.39677,112280.0,112270.0,0.81698]
[1757067613840,0.26117941,112280.0,112270.0,1.07815941]
[1757067614340,0.26117941,112280.0,112270.0,1.38815941]
[1757067614533,0.27457941,112280.0,112270.0,1.38815941]
[1757067618239,0.27457941,112280.0,112270.0,1.12698]
[1757067620044,0.0134,112280.0,112270.0,1.38815941]
[1757067620244,0.26117941,112280.0,112270.0,1.74895941]
[1757067628749,0.26117941,112280.0,112270.0,1.82897693]
[1757067629249,0.26117941,112280.0,112270.0,1.56779752]
[1757067629450,0.26117941,112280.0,112270.0,1.82865693]
[1757067632752,0.26117941,112280.0,112270.0,1.56747752]
[1757067632952,0.26117941,112280.0,112270.0,1.82865693]
[1757067635048,0.64410172,112290.0,112270.0,1.82865693]
[1757067635257,0.26117941,112280.0,112270.0,1.82865693]
[1757067635659,0.38292231,112290.0,112270.0,1.82865693]
[1757067635851,0.26117941,112280.0,112270.0,1.82865693]
[1757067636955,0.38292231,112290.0,112270.0,1.82865693]
[1757067637155,0.26117941,112280.0,112270.0,1.82865693]
[1757067639159,0.26117941,112280.0,112270.0,1.82849693]
[1757067641559,0.26117941,112280.0,112270.0,1.01309693]
[1757067641760,0.26117941,112280.0,112270.0,1.82849693]
[1757067643359,0.26117941,112280.0,112270.0,1.01309693]
[1757067643559,0.26117941,112280.0,112270.0,1.82845693]
[1757067644157,0.26117941,112280.0,112270.0,0.70309693]
[1757067644363,0.29792941,112280.0,112270.0,0.70309693]
[1757067644559,0.29792941,112280.0,112270.0,1.25723752]
[1757067644861,0.29792941,112280.0,112270.0,1.51841693]
[1757067645463,0.03675,112280.0,112270.0,1.51841693]
[1757067645762,0.29792941,112280.0,112270.0,1.25723752]
[1757067647551,0.54792941,112280.0,112270.0,0.08111752]
[1757067647756,0.90872941,112280.0,112270.0,0.89639752]
[1757067648762,0.90872941,112280.0,112270.0,0.08111752]
[1757067649061,0.90872941,112280.0,112270.0,0.89635752]
[1757067649462,0.64755,112280.0,112270.0,0.08111752]
[1757067649664,0.90872941,112280.0,112270.0,0.08111752]
[1757067649866,0.90872941,112280.0,112270.0,0.89635752]
[1757067650465,0.90872941,112280.0,112270.0,0.08111752]
[1757067650664,0.90872941,112280.0,112270.0,0.89635752]
[1757067650866,0.90872941,112280.0,112270.0,0.89631752]
[1757067651367,0.90872941,112280.0,112270.0,0.08111752]
[1757067651758,0.90872941,112280.0,112270.0,0.89631752]
[1757067652061,0.90872941,112280.0,112270.0,0.08111752]
[1757067652264,0.90872941,112280.0,112270.0,0.89631752]
[1757067654470,0.90872941,112280.0,112270.0,0.8163]
[1757067656272,0.65872941,112280.0,112270.0,0.8163]
[1757067656571,0.27470941,112280.0,112270.0,1.39747941]
[1757067657467,0.27470941,112280.0,112270.0,1.1363]
[1757067657674,0.27470941,112280.0,112270.0,1.39747941]
[1757067659773,0.27470941,112280.0,112270.0,1.1363]
[1757067659975,0.27470941,112280.0,112270.0,1.39747941]
[1757067661478,0.01353,112280.0,112270.0,1.1363]
[1757067661790,0.38292231,112290.0,112270.0,1.1363]
[1757067662384,0.61502052,112290.0,112270.0,1.1363]
[1757067665773,0.63616052,112290.0,112270.0,0.3211]
[1757067666077,0.63616052,112290.0,112280.0,0.81496]
[1757067666379,0.63596052,112290.0,112280.0,0.81506]
[1757067666978,0.40386231,112290.0,112280.0,0.81506]
[1757067667280,0.63596052,112290.0,112280.0,0.81506]
[1757067668072,0.63696052,112290.0,112280.0,0.81506]
[1757067669082,0.40486231,112290.0,112280.0,0.81506]
[1757067669278,0.63696052,112290.0,112280.0,0.81506]
[1757067669677,0.37496,112290.0,112280.0,1.29715821]
[1757067669888,0.001,112290.0,112280.0,1.97795821]
[1757067670481,0.001,112290.0,112280.0,0.84299821]
[1757067670679,0.001,112290.0,112280.0,1.97787821]
[1757067671488,0.001,112290.0,112280.0,1.97887821]
[1757067671684,0.37383,112300.0,112280.0,1.97887821]
[1757067671983,0.37383,112300.0,112280.0,1.72887821]
[1757067672183,0.38282428,112300.0,112280.0,1.72887821]
[1757067672987,0.38282428,112300.0,112280.0,1.72787821]
[1757067673177,0.38282428,112300.0,112280.0,1.72887821]
[1757067675188,0.38282428,112300.0,112280.0,1.49678]
[1757067675385,0.38282428,112300.0,112280.0,1.72887821]
[1757067677091,0.38282428,112300.0,112280.0,1.49678]